bitfinex/quotes_ETHUSD_20220123
["timestamp","ask_amount","ask_price","bid_price","bid_amount"]
[1642960568388,1.33796747,2444.2,2443.5,1.1378]
[1642960568588,1.33796747,2444.2,2443.5,0.3]
[1642960568589,0.1635,2444.1,2443.5,0.3]
[1642960568788,5.28977897,2444.1,2443.5,0.3]
[1642960568988,5.28977897,2444.1,2443.4,0.591]
[1642960569191,5.12627897,2444.1,2443.4,1.61482]
[1642960569392,0.1635,2444.2,2443.4,1.61482]
[1642960569393,5.12627897,2444.2,2443.4,1.61482]
[1642960569596,4.14759383,2443.9,2443.4,1.91482]
[1642960569792,4.14759383,2443.9,2443.4,0.891]
[1642960569990,4.14759383,2443.9,2443.7,1.08740229]
[1642960571626,1.22399358,2443.8,2443.4,0.841]
[1642960571826,4.14759383,2443.9,2443.4,0.841]
[1642960572231,6.35509698,2443.8,2443.4,0.591]
[1642960572429,0.00214418,2444.3,2443.1,3.7764]
[1642960572430,4.31109383,2443.7,2443.1,3.7764]
[1642960572733,4.14759383,2443.6,2443.3,1.20437189]
[1642960573728,4.31129383,2443.7,2443.3,1.20437189]
[1642960573929,4.14759383,2443.6,2443.3,1.50437189]
[1642960574331,4.14759383,2443.7,2443.3,1.50437189]
[1642960574634,4.14971829,2443.8,2443.3,1.50437189]
[1642960574877,3.10602296,2443.7,2443.3,1.50437189]
[1642960575072,3.10602296,2443.6,2443.3,1.50437189]
[1642960575480,3.10602296,2443.5,2443.3,1.50437189]
[1642960575677,3.10602296,2443.6,2443.3,1.50437189]
[1642960576278,3.10602296,2443.6,2443.3,1.20437189]
[1642960576881,3.10602296,2443.5,2443.3,1.20437189]
[1642960577485,4.31129383,2443.7,2443.3,1.20437189]
[1642960577683,0.00211262,2443.5,2443.3,1.20437189]
[1642960578280,0.00211262,2443.5,2443.3,0.92179164]
[1642960579429,0.00211262,2443.5,2443.1,4.1]
[1642960579631,0.00211262,2443.5,2443.2,0.3]
[1642960582879,4.14267416,2443.5,2443.2,0.3]
[1642960583077,0.00211262,2443.5,2443.2,0.3]
[1642960584080,4.14267416,2443.5,2443.2,0.3]
[1642960584282,0.00211262,2443.5,2443.2,0.3]
[1642960584883,4.14267416,2443.5,2443.1,4.1]
[1642960586926,4.14056154,2443.4,2443.1,4.1]
[1642960587730,4.14267022,2443.4,2443.1,4.1]
[1642960587937,5.67981236,2443.4,2443.1,4.1]
[1642960588131,6.32570919,2443.3,2443.1,4.1]
[1642960588331,4.14056154,2443.3,2443.1,4.1]
[1642960588531,1.53925082,2443.4,2443.1,4.1]
[1642960588532,4.14056154,2443.2,2443.1,4.1]
[1642960588731,1.53925082,2443.4,2443.1,4.1]
[1642960588930,6.71495275,2443.4,2443.1,2.1241092]
[1642960589879,5.17781061,2443.4,2443.1,2.1241092]
[1642960592383,0.00210868,2443.4,2443.2,1.40294868]
[1642960592784,4.15734091,2443.3,2443.2,1.40294868]
[1642960592985,0.00210868,2443.4,2443.2,1.70294868]
[1642960593193,4.15926338,2443.4,2443.2,1.61810716]
[1642960593383,4.15926338,2443.4,2443.2,1.88070716]
[1642960593637,4.1571547,2443.3,2443.2,1.88070716]
[1642960593831,4.1571547,2443.3,2443.2,1.83070716]
[1642960595236,4.1571547,2443.3,2443.2,2.13070716]
[1642960595436,4.1571547,2443.3,2443.2,1.83070716]
[1642960595744,4.1571547,2443.3,2443.2,2.13070716]
[1642960595937,4.1589648,2443.3,2443.2,2.13070716]
[1642960597586,4.15971856,2443.5,2443.3,7.9]
[1642960597785,5.198706,2443.9,2443.4,0.591]
[1642960598081,5.198706,2443.9,2443.4,1.891]
[1642960598290,5.198706,2444.0,2443.4,2.191]
[1642960598482,5.198706,2444.0,2443.5,1.38982613]
[1642960598682,0.1635,2444.6,2443.6,0.591]
[1642960598683,5.198706,2444.2,2443.6,0.591]
[1642960599082,5.198706,2444.2,2443.7,1.02366]
[1642960599282,5.198706,2444.2,2443.7,1.61466]
[1642960599486,5.198706,2444.2,2443.7,1.91466]
[1642960599882,5.198706,2444.2,2444.1,1.43082694]
[1642960600085,5.198706,2444.2,2444.1,1.13961834]
[1642960600288,3.8995,2445.0,2444.1,2.03061834]
[1642960600289,5.198706,2444.3,2444.1,2.03061834]
[1642960600488,5.198706,2444.5,2444.2,2.29839347]
[1642960600686,5.198706,2444.5,2444.3,0.591]
[1642960601134,5.198706,2444.4,2444.3,0.591]
[1642960601731,5.198706,2444.5,2444.3,0.591]
[1642960602535,5.198706,2444.4,2444.3,0.591]
[1642960602733,6.6249377,2444.4,2444.3,0.591]
[1642960602934,6.6249377,2444.4,2444.0,0.1635]
[1642960602935,1.2627317,2444.4,2444.0,0.1635]
[1642960603136,5.19786527,2444.2,2444.0,0.1635]
[1642960603335,5.36136527,2444.1,2444.0,0.1635]
[1642960603542,5.19786527,2444.1,2444.0,0.1635]
[1642960604037,1.09786527,2444.2,2444.0,0.1635]
[1642960604538,1.2627317,2444.4,2444.0,0.1635]
[1642960604539,0.1635,2444.1,2444.0,0.1635]
[1642960604736,0.1635,2444.3,2444.0,0.1635]
[1642960606474,1.51796589,2444.3,2444.0,0.1635]
[1642960607480,0.1635,2444.3,2444.0,0.1635]
[1642960607677,0.00187271,2444.2,2444.0,0.1635]
[1642960607978,0.1635,2444.1,2444.0,0.1635]
[1642960610233,5.36134348,2444.1,2444.0,0.10324548]
[1642960610836,5.19784348,2444.1,2444.0,0.10324548]
[1642960611235,5.19971619,2444.2,2444.0,0.10324548]
[1642960612581,0.00186926,2444.1,2444.0,0.10324548]
[1642960613585,5.19971274,2444.1,2444.0,4.20324548]
[1642960615189,0.00186926,2444.1,2444.0,4.20324548]
[1642960620078,0.00186926,2444.1,2444.0,2.65889448]
[1642960626747,4.60186926,2444.1,2444.0,2.65889448]
[1642960626946,0.00186926,2444.1,2444.0,2.65889448]
[1642960628585,5.19971274,2444.1,2444.0,2.65889448]
[1642960629193,0.00186926,2444.1,2444.0,2.65889448]
[1642960630188,0.00186926,2444.1,2444.0,1.76339823]
[1642960630386,5.19971274,2444.1,2444.0,1.76339823]
[1642960630588,0.00186926,2444.1,2444.0,1.76339823]
[1642960630988,5.19971274,2444.1,2444.0,1.76339823]
[1642960632240,0.00186926,2444.1,2444.0,1.76339823]
[1642960633238,5.19971274,2444.1,2444.0,1.76339823]
[1642960633639,0.00186926,2444.1,2444.0,1.76339823]
[1642960634039,0.00186926,2444.1,2443.6,1.5088]
[1642960634239,0.00186926,2444.1,2443.5,1.94040581]
[1642960634440,0.00186926,2444.1,2443.5,1.64040581]
[1642960634644,5.19971274,2444.1,2443.5,1.64040581]
[1642960634878,5.19971274,2444.1,2443.5,1.94040581]
[1642960635088,5.19971274,2444.1,2443.5,2.94040581]
[1642960636280,5.19971274,2444.1,2443.5,1.64040581]
[1642960636886,5.19784348,2444.0,2443.5,0.3]
[1642960637084,5.19784348,2444.0,2443.4,0.891]
[1642960637486,5.19784348,2444.0,2443.4,1.891]
[1642960637692,5.19970929,2444.0,2443.4,1.891]
[1642960638291,6.59428432,2443.9,2443.4,1.891]
[1642960638493,6.59428432,2443.9,2443.4,0.891]
[1642960639548,5.19784348,2443.9,2443.4,0.891]
[1642960640048,5.19784348,2443.8,2443.4,0.891]
[1642960640255,5.19784348,2443.9,2443.4,0.891]
[1642960640448,0.16536581,2444.0,2443.4,0.891]
[1642960640449,5.19784348,2443.8,2443.4,0.891]
[1642960640651,5.19784348,2443.8,2443.4,0.3]
[1642960640848,6.56915041,2443.7,2443.4,0.3]
[1642960641048,1.37130693,2443.7,2443.2,1.6]
[1642960641247,6.56915041,2443.7,2443.2,1.6]
[1642960641447,6.56915041,2443.7,2443.3,1.0738409]
[1642960641647,6.56915041,2443.7,2443.3,1.3738409]
[1642960642685,0.001852,2443.6,2443.2,0.3]
[1642960645092,0.165552,2443.6,2443.2,0.3]
[1642960646137,5.37822417,2443.6,2443.2,0.3]
[1642960646330,5.21452417,2443.6,2443.2,0.3]
[1642960647034,5.21452417,2443.6,2443.0,6.22924205]
[1642960647234,5.21452417,2443.6,2443.0,2.46734205]
[1642960647636,5.21452417,2443.6,2443.1,1.07440592]
[1642960648045,5.21267217,2443.5,2443.1,1.07440592]
[1642960649140,5.21452417,2443.6,2443.1,1.07440592]
[1642960650586,0.001852,2443.6,2443.1,1.07440592]
[1642960650781,5.21452417,2443.6,2443.1,1.07440592]
[1642960650981,1.17668246,2443.4,2443.1,1.07440592]
[1642960651188,6.38935463,2443.4,2443.1,1.07440592]
[1642960651382,0.1637,2443.3,2443.1,1.07440592]
[1642960651582,0.1637,2443.3,2443.0,2.7554396]
[1642960651583,5.21267217,2443.3,2443.0,2.7554396]
[1642960651984,1.13304484,2443.4,2443.0,2.7554396]
[1642960651985,6.4926536,2443.2,2443.0,2.7554396]
[1642960652182,1.27998143,2443.2,2443.0,2.7554396]
[1642960652786,1.22998143,2443.2,2442.7,1.07440592]
[1642960652986,1.22998143,2443.2,2442.7,1.37440592]
[1642960653190,5.21451381,2443.3,2442.7,1.37440592]
[1642960654040,5.21451381,2443.3,2442.8,1.07440592]
[1642960654340,5.21451381,2443.3,2442.8,1.37440592]
[1642960654940,0.00184164,2443.3,2442.8,1.37440592]
[1642960655340,0.00184164,2443.3,2442.9,1.07440592]
[1642960655544,5.21451381,2443.3,2442.9,1.37440592]
[1642960656343,0.00184164,2443.3,2442.9,1.37440592]
[1642960656544,0.16554164,2443.3,2442.7,1.47763885]
[1642960657786,5.37821381,2443.3,2442.8,1.08653945]
[1642960657984,0.00184164,2443.3,2442.8,1.08653945]
[1642960658186,5.21451381,2443.3,2442.8,1.08653945]
[1642960658390,0.00184164,2443.3,2442.8,1.08653945]
[1642960660185,0.13845458,2443.1,2442.8,1.08653945]
[1642960660590,0.02096364,2443.0,2442.8,1.08653945]
[1642960660793,0.1637,2443.0,2442.8,1.08653945]
[1642960661013,0.1637,2443.0,2442.8,0.67867236]
[1642960661014,5.21267217,2442.9,2442.8,0.67867236]
[1642960661233,6.88344441,2442.9,2442.8,0.67867236]
[1642960661632,6.88344441,2442.9,2442.1,0.01280101]
[1642960661836,0.01357608,2442.7,2441.9,3.0065]
[1642960662039,0.1637,2442.6,2441.9,3.0065]
[1642960662233,1.152,2442.6,2441.9,3.0065]
[1642960662840,1.152,2442.6,2442.1,1.51534567]
[1642960663236,1.152,2442.6,2441.8,1.1809]
[1642960664038,1.152,2442.6,2441.8,1.4809]
[1642960664238,1.152,2442.6,2441.9,1.14587147]
[1642960667695,0.00181401,2442.5,2441.9,1.14587147]
[1642960669945,0.00181401,2442.5,2441.8,1.4809]
[1642960670147,0.00181401,2442.5,2441.8,0.02]
[1642960670348,0.36813,2442.4,2441.8,0.02]
[1642960670947,1.53089082,2442.4,2441.8,0.02]
[1642960671158,3.02367062,2442.4,2441.8,0.02]
[1642960672692,0.0018071,2442.3,2441.8,0.02]
[1642960672893,0.1637,2442.2,2441.8,0.02]
[1642960675797,1.39379439,2442.0,2441.8,0.02]
[1642960676848,2.58879439,2442.0,2441.8,0.02]
[1642960677045,0.22429439,2442.0,2441.8,0.02]
[1642960677450,1.36762602,2441.9,2441.8,0.02]
[1642960677656,1.57410547,2441.9,2441.8,0.02]
[1642960678051,1.57410547,2441.9,2441.8,0.01254609]
[1642960678052,7.02410547,2441.9,2441.8,0.01254609]
[1642960678452,8.32410547,2441.9,2441.8,0.01254609]
[1642960678652,2.87410547,2441.9,2441.8,0.01254609]
[1642960678850,3.03790547,2441.9,2441.8,0.01254609]
[1642960679055,3.33790547,2441.9,2441.8,4.609e-05]
[1642960679250,3.33790547,2441.9,2441.5,0.02]
[1642960679251,0.03000731,2441.7,2441.5,0.02]
[1642960679456,8.0638,2441.6,2441.2,0.02]
[1642960679651,1.0,2441.5,2441.2,0.02]
[1642960679902,2.59865269,2441.4,2441.2,0.02]
[1642960680299,8.10443,2441.3,2441.2,0.02]
[1642960680499,9.10443,2441.3,2441.2,0.0001]
[1642960680697,7.9,2441.2,2441.0,0.02]
[1642960681097,6.59909162,2441.1,2441.0,0.02]
[1642960681901,6.45352162,2441.1,2441.0,0.0001]
[1642960682106,7.75352162,2441.1,2441.0,0.0001]
[1642960682300,7.91732162,2441.1,2441.0,0.0001]
[1642960682702,7.25,2441.0,2440.9,0.0001]
[1642960682903,13.82808683,2441.0,2440.9,0.0001]
[1642960683104,14.12808683,2441.0,2440.9,0.0001]
[1642960683502,7.3,2440.9,2440.8,0.0001]
[1642960683744,9.85997538,2440.9,2440.8,0.0001]
[1642960683943,10.85997538,2440.9,2440.8,0.0001]
[1642960684340,6.3,2440.8,2440.7,0.0001]
[1642960684543,9.48912409,2440.8,2440.7,0.0001]
[1642960684746,0.1638,2440.9,2440.7,0.0001]
[1642960684945,0.00201783,2441.1,2440.7,0.0001]
[1642960686545,0.00201783,2441.1,2440.9,1.36365191]
[1642960686944,0.00201783,2441.1,2440.8,1.22037157]
[1642960687789,0.20644388,2441.4,2440.8,1.22037157]
[1642960687989,0.20644388,2441.4,2440.8,2.5623576]
[1642960688789,0.20644388,2441.4,2440.8,2.0623576]
[1642960689293,0.00201388,2441.4,2440.8,2.0623576]
[1642960689491,0.00201388,2441.4,2440.8,2.3623576]
[1642960689791,0.00201388,2441.4,2440.8,2.0623576]
[1642960689995,0.00201388,2441.4,2440.8,0.72037157]
[1642960691336,0.00201388,2441.4,2441.1,1.22025005]
[1642960692139,0.00201388,2441.4,2441.1,0.72025005]
[1642960692340,0.00201388,2441.4,2440.8,1.02037157]
[1642960692546,0.20645574,2441.6,2441.2,1.36108445]
[1642960692745,0.00202574,2441.6,2441.2,1.36108445]
[1642960693343,0.00202574,2441.6,2441.3,1.31068961]
[1642960697005,0.00202574,2441.6,2441.3,3.89872982]
[1642960697206,0.00202574,2441.6,2441.4,0.591]
[1642960706551,0.00202574,2441.6,2441.4,4.691]
[1642960710592,0.00202574,2441.6,2441.4,4.1]
[1642960711696,0.00202574,2441.6,2441.4,2.63279734]
[1642960712095,5.2138,2441.5,2441.4,2.63279734]
[1642960712300,5.05,2441.5,2441.4,2.63279734]
[1642960712800,5.05197744,2441.5,2441.4,2.63279734]
[1642960713002,0.00197744,2441.5,2441.4,2.63279734]
[1642960713869,3.65197744,2441.5,2441.4,2.63279734]
[1642960714477,8.83573871,2441.5,2441.4,2.63279734]
[1642960714878,3.65197744,2441.5,2441.4,2.63279734]
[1642960715077,3.85640744,2441.5,2441.4,2.63279734]
[1642960715475,3.81577744,2441.5,2441.4,2.63279734]
[1642960715984,8.99953871,2441.5,2441.4,2.63279734]
[1642960716379,9.20396871,2441.5,2441.4,2.63279734]
[1642960717992,4.02020744,2441.5,2441.4,2.63279734]
[1642960718392,4.02020744,2441.5,2441.4,1.0309418]
[1642960719193,3.85640744,2441.5,2441.4,1.0309418]
[1642960721653,3.85640744,2441.5,2441.4,0.69153371]
[1642960721852,0.20640744,2441.5,2441.4,0.69153371]
[1642960722055,0.00197744,2441.5,2441.4,0.69153371]
[1642960722659,5.20663488,2441.7,2441.4,0.69153371]
[1642960722859,5.20390353,2441.6,2441.4,0.69153371]
[1642960723060,5.20390353,2441.6,2441.5,0.70294543]
[1642960724259,5.40833353,2441.6,2441.4,0.69153371]
[1642960724460,0.00273135,2441.7,2441.4,0.69153371]
[1642960724461,5.20390353,2441.5,2441.4,0.69153371]
[1642960724890,5.20390353,2441.5,2441.4,0.5457805]
[1642960725494,5.20390353,2441.5,2441.4,3.29942779]
[1642960725692,0.00273135,2441.7,2441.4,3.29942779]
[1642960725693,0.00273135,2441.7,2441.5,5.15]
[1642960725893,0.00273135,2441.7,2441.6,6.02864084]
[1642960726094,6.91168169,2442.3,2441.7,3.3]
[1642960726293,6.91168169,2442.3,2441.8,0.591]
[1642960726498,6.91168169,2442.3,2442.0,1.10196411]
[1642960727094,0.1638,2442.5,2442.0,1.10196411]
[1642960727300,6.93843485,2442.3,2442.0,1.10196411]
[1642960728301,6.93843485,2442.3,2442.2,1.21843787]
[1642960728501,6.93843485,2442.4,2442.2,0.52988088]
[1642960728950,6.93843485,2442.5,2442.2,0.52988088]
[1642960729350,6.93843485,2442.7,2442.6,1.1239017]
[1642960729946,0.1637,2442.9,2442.6,1.1239017]
[1642960730147,6.93912089,2442.7,2442.6,1.1239017]
[1642960730646,6.93912089,2442.8,2442.6,1.1239017]
[1642960731048,6.93912089,2442.7,2442.6,1.1239017]
[1642960731656,6.93912089,2442.7,2442.2,3.88698088]
[1642960731848,6.93912089,2442.7,2442.3,0.6937223]
[1642960732050,6.93912089,2442.8,2442.3,0.6937223]
[1642960732702,6.93912089,2442.7,2442.1,5.3712]
[1642960732904,6.93912089,2442.7,2442.4,1.3403968]
[1642960734406,6.93912089,2442.6,2442.4,1.3403968]
[1642960734606,6.93912089,2442.7,2442.4,1.3403968]
[1642960734806,6.93912089,2442.6,2442.1,1.3]
[1642960735006,6.93912089,2442.6,2442.1,0.3]
[1642960735208,6.93912089,2442.7,2442.0,2.41146141]
[1642960735407,6.93912089,2442.7,2442.0,1.41146141]
[1642960735811,0.01223203,2442.1,2441.6,3.51292]
[1642960736013,0.01223203,2442.1,2441.5,1.0]
[1642960736014,5.21252838,2441.7,2441.5,1.0]
[1642960736256,5.21252838,2441.7,2441.1,0.07021514]
[1642960736257,13.26365806,2441.6,2441.1,0.07021514]
[1642960736451,13.26365806,2441.6,2441.0,0.0019711]
[1642960736452,0.01401948,2441.5,2441.0,0.0019711]
[1642960736657,0.1638,2441.4,2440.7,3.6245]
[1642960736855,0.1638,2441.5,2440.7,3.6245]
[1642960737061,6.68833763,2441.4,2441.0,4.0]
[1642960737259,5.36119749,2441.3,2441.0,4.0]
[1642960738558,5.19739749,2441.3,2441.0,4.0]
[1642960739559,5.19739749,2441.2,2441.0,4.0]
[1642960739993,5.36119749,2441.3,2441.0,4.0]
[1642960740896,0.1638,2441.3,2441.0,4.0]
[1642960741295,5.36119749,2441.3,2441.0,4.0]
[1642960741695,7.5771018,2441.3,2441.0,4.0]
[1642960741900,7.5771018,2441.3,2441.0,2.74177266]
[1642960741901,5.19739749,2441.2,2441.0,2.74177266]
[1642960742095,7.68961182,2441.1,2441.0,2.74177266]
[1642960742295,5.19739749,2441.1,2441.0,2.74177266]
[1642960742499,6.3717268,2441.1,2441.0,2.74177266]
[1642960742698,8.62886615,2441.1,2441.0,2.74177266]
[1642960742900,1.17432931,2441.1,2441.0,2.74177266]
[1642960743100,1.17432931,2441.1,2441.0,1.12844484]
[1642960743101,11.36392339,2441.1,2441.0,1.12844484]
[1642960743744,9.07432931,2441.1,2441.0,1.12844484]
[1642960744245,9.27875931,2441.1,2441.0,1.12844484]
[1642960744447,10.27875931,2441.1,2441.0,1.12844484]
[1642960744643,10.44255931,2441.1,2441.0,1.12844484]
[1642960745746,10.74255931,2441.1,2441.0,1.12844484]
[1642960746546,10.44255931,2441.1,2441.0,1.12844484]
[1642960746746,10.74255931,2441.1,2441.0,1.12844484]
[1642960747148,7.9,2441.0,2440.7,0.0001]
[1642960747403,13.27289716,2440.8,2440.7,0.0001]
[1642960747606,9.40443,2440.8,2440.7,0.0001]
[1642960747805,10.62533,2440.8,2440.7,0.0001]
[1642960750208,1.21661941,2440.4,2439.8,1.1933]
[1642960750406,1.21661941,2440.4,2439.8,1.1433]
[1642960750805,1.21661941,2440.4,2439.7,0.02]
[1642960754251,2.21661941,2440.4,2439.7,0.02]
[1642960755402,2.38051941,2440.4,2439.7,0.02]
[1642960755600,1.15989582,2440.0,2439.7,0.02]
[1642960755999,1.15989582,2440.0,2439.7,1.12]
[1642960756399,1.15989582,2440.0,2439.7,1.02]
[1642960757000,1.15989582,2440.0,2439.6,6.0158829]
[1642960761557,0.36823,2440.3,2439.6,6.0158829]
[1642960762056,0.36823,2440.3,2439.6,5.9858829]
[1642960762704,2.88998956,2440.3,2439.6,5.9858829]
[1642960763104,1.0,2440.2,2439.6,5.9858829]
[1642960763405,0.1638,2440.1,2439.6,5.9858829]
[1642960763604,1.10331114,2440.0,2439.6,5.9858829]
[1642960763804,0.1638,2439.9,2439.6,5.9858829]
[1642960764005,1.36756957,2439.7,2439.6,5.9858829]
[1642960765406,0.36823,2440.0,2439.6,5.9858829]
[1642960765606,0.20443,2440.0,2439.6,5.9858829]
[1642960766658,1.11121025,2439.8,2439.6,5.9858829]
[1642960767668,0.1638,2439.9,2439.6,5.9858829]
[1642960767863,0.20443,2440.0,2439.6,5.9858829]
[1642960768763,1.52136308,2439.9,2439.6,5.9858829]
[1642960768964,1.68516308,2439.9,2439.6,5.9858829]
[1642960769768,0.1638,2439.9,2439.6,6.2858829]
[1642960770002,0.0007,2440.5,2439.6,6.2985129]
[1642960770208,0.0007,2440.5,2439.7,1.0]
[1642960770407,3.18027969,2440.4,2439.7,1.0]
[1642960770807,3.18027969,2440.4,2440.0,1.08676044]
[1642960771105,3.18027969,2440.4,2440.0,0.6]
[1642960771306,3.18027969,2440.4,2440.0,0.3]
[1642960771508,3.18027969,2440.4,2439.8,0.3]
[1642960771806,3.18027969,2440.4,2439.8,0.891]
[1642960772009,0.0007,2440.5,2439.9,2.2828895]
[1642960772407,0.0007,2440.5,2439.9,3.5828895]
[1642960773209,0.0007,2440.5,2440.2,1.25694154]
[1642960773410,0.0007,2440.5,2440.2,1.55694154]
[1642960775557,0.0007,2440.5,2440.3,2.25838436]
[1642960775960,0.0007,2440.5,2440.4,6.941]
[1642960776158,0.0007,2440.5,2440.4,10.80831279]
[1642960776456,0.0007,2440.5,2440.4,11.10831279]
[1642960777161,0.0007,2440.5,2440.4,10.80831279]
[1642960777800,0.0007,2440.5,2440.4,11.10831279]
[1642960778501,0.0007,2440.5,2440.4,10.80831279]
[1642960778702,0.0007,2440.5,2440.4,11.10831279]
[1642960779505,0.0007,2440.5,2440.4,4.75831279]
[1642960781003,0.0007,2440.5,2440.4,8.25831279]
[1642960782457,0.0007,2440.5,2440.4,4.75831279]
[1642960784160,0.0007,2440.5,2440.4,6.191]
[1642960784561,0.0007,2440.5,2440.4,8.50297843]
[1642960785402,0.1638,2441.2,2440.4,8.50297843]
[1642960785403,0.1638,2441.2,2440.5,4.95]
[1642960785605,0.1638,2441.2,2440.6,3.42405572]
[1642960785908,0.1638,2441.2,2440.7,0.3]
[1642960786705,0.1638,2441.2,2440.9,1.31401072]
[1642960786905,0.1638,2441.2,2440.9,1.61401072]
[1642960787908,0.1638,2441.3,2440.9,1.61401072]
[1642960789053,0.1638,2441.3,2440.9,1.91401072]
[1642960789255,5.13805119,2441.4,2440.9,4.17154757]
[1642960789456,5.13805119,2441.5,2440.9,1.91401072]
[1642960789656,5.13805119,2441.5,2441.4,1.21897032]
[1642960789856,5.13805119,2441.5,2441.4,0.83831383]
[1642960790255,5.13805119,2441.5,2441.0,0.3]
[1642960790455,5.13805119,2441.6,2441.0,1.0]
[1642960790656,0.1638,2441.5,2441.0,0.3]
[1642960791255,0.1638,2441.5,2441.4,1.36545196]
[1642960791855,5.13805119,2441.6,2441.4,1.36545196]
[1642960792058,5.13805119,2441.5,2441.4,1.36545196]
[1642960792502,5.13805119,2441.6,2441.4,1.36545196]
[1642960794607,5.13805119,2441.6,2441.1,1.3]
[1642960794810,5.34248119,2441.6,2440.8,0.3]
[1642960795012,5.13805119,2441.3,2440.7,0.3]
[1642960795210,0.1638,2441.2,2440.7,0.3]
[1642960795611,5.30185119,2441.2,2440.6,1.0]
[1642960795806,6.6873694,2441.2,2440.6,1.0]
[1642960796007,6.8511694,2441.2,2440.6,1.0]
[1642960796466,1.29783798,2440.9,2440.5,1.138]
[1642960796665,1.29783798,2440.9,2440.1,4.1426]
[1642960796869,0.1638,2440.8,2440.1,0.8271]
[1642960797067,0.1638,2440.8,2440.1,1.2271]
[1642960797366,5.50628119,2440.8,2440.1,0.2271]
[1642960797569,1.09118159,2440.7,2440.1,1.75610018]
[1642960797768,0.1638,2440.6,2440.1,1.75610018]
[1642960798367,0.1638,2440.6,2440.1,0.2271]
[1642960798973,0.1638,2440.7,2440.1,0.2271]
[1642960799570,5.30185119,2440.9,2440.1,0.2271]
[1642960800906,2.46774227,2440.6,2440.1,0.2271]
[1642960801906,2.10184303,2440.5,2440.1,0.2271]
[1642960802109,2.10184303,2440.5,2440.3,0.00598945]
[1642960802309,2.10184303,2440.5,2440.1,0.2271]
[1642960802708,2.83461482,2440.2,2440.1,0.2271]
[1642960802913,5.03350123,2440.2,2440.1,0.2271]
[1642960803112,2.99841482,2440.2,2440.1,0.2271]
[1642960803311,5.44704802,2440.2,2440.1,0.2271]
[1642960803510,6.44704802,2440.2,2440.1,0.09112636]
[1642960803758,1.28476951,2439.8,2439.6,5.9858829]
[1642960803959,0.1638,2439.7,2439.6,5.9858829]
[1642960804165,2.55977305,2439.8,2439.6,5.9858829]
[1642960804362,0.1638,2440.0,2439.6,5.9858829]
[1642960804562,0.1638,2440.1,2439.6,5.9858829]
[1642960805360,1.59957029,2440.1,2439.6,5.9858829]
[1642960805762,1.14140102,2440.0,2439.6,5.9858829]
[1642960805962,2.31960816,2439.9,2439.6,5.9858829]
[1642960806164,0.1638,2439.9,2439.6,5.9858829]
[1642960807706,0.36823,2439.9,2439.6,5.9858829]
[1642960808605,8.10443,2439.7,2439.6,5.9858829]
[1642960808804,8.26823,2439.7,2439.6,5.9858829]
[1642960809005,8.88713096,2439.7,2439.6,5.9858829]
[1642960809202,1.80690096,2439.7,2439.6,5.9858829]
[1642960809412,1.80690096,2439.7,2439.6,6.31477712]
[1642960809604,7.25,2439.6,2438.9,0.02]
[1642960809807,0.1638,2439.5,2438.9,0.02]
[1642960810604,3.45494,2439.4,2438.9,0.02]
[1642960811267,4.51969191,2439.3,2438.6,0.84679483]
[1642960811464,0.20494,2439.4,2438.6,0.84679483]
[1642960811666,0.20494,2439.4,2438.6,3.457685]
[1642960812071,0.20494,2439.4,2438.6,1.14679483]
[1642960812467,0.20494,2439.4,2438.8,1.36751128]
[1642960813167,0.164,2439.8,2438.9,2.36921141]
[1642960813372,2.99135119,2440.0,2439.5,0.01272542]
[1642960813570,2.6357,2440.9,2439.9,4.81260865]
[1642960813571,9.41092089,2440.9,2439.9,4.81260865]
[1642960813870,10.54286089,2441.1,2439.9,5.41260865]
[1642960814076,6.93912089,2441.1,2440.0,1.79594]
[1642960814272,6.93912089,2441.1,2440.1,0.1638]
[1642960814472,0.1638,2441.6,2440.1,0.1638]
[1642960814473,6.93912089,2441.6,2440.4,7.69923506]
[1642960814675,6.93912089,2441.6,2440.5,3.78015848]
[1642960814909,6.93912089,2441.6,2440.5,1.591]
[1642960815109,6.93912089,2441.7,2440.5,1.591]
[1642960815313,8.43351215,2441.8,2440.5,1.79594]
[1642960815513,8.43351215,2441.8,2441.1,1.44126759]
[1642960815514,9.53197042,2441.8,2441.1,1.44126759]
[1642960815718,6.93912089,2441.8,2441.1,2.33226759]
[1642960815920,6.93912089,2441.7,2441.1,1.77850308]
[1642960816318,6.93912089,2441.8,2441.1,1.77850308]
[1642960816715,9.7720776,2441.8,2441.1,1.77850308]
[1642960816916,5.05,2441.7,2441.0,1.18516722]
[1642960817116,5.05,2441.7,2441.0,1.48516722]
[1642960817320,5.05,2441.7,2441.0,1.78516722]
[1642960817917,5.05,2441.7,2441.1,0.591]
[1642960818117,1.24456176,2441.4,2441.1,0.591]
[1642960818321,3.32039449,2441.4,2441.1,0.591]
[1642960818522,0.1638,2441.3,2440.3,0.4063]
[1642960818759,0.1638,2441.3,2440.4,0.591]
[1642960818958,0.1638,2441.3,2440.4,0.509]
[1642960819362,5.17833357,2441.2,2440.4,0.509]
[1642960819564,1.32407423,2441.1,2440.5,1.49086365]
[1642960819765,5.17833357,2441.1,2440.6,0.591]
[1642960819969,5.17833357,2441.2,2440.6,0.591]
[1642960820367,5.17833357,2441.3,2440.6,0.591]
[1642960820566,5.17833357,2441.4,2440.7,0.3]
[1642960820767,5.17833357,2441.4,2440.8,0.591]
[1642960820967,5.17833357,2441.4,2441.1,1.2924674]
[1642960821169,5.17833357,2441.4,2441.2,0.591]
[1642960821369,5.17833357,2441.4,2441.2,0.891]
[1642960821572,5.17833357,2441.8,2441.2,0.891]
[1642960821971,5.17833357,2441.8,2441.2,1.891]
[1642960823111,1.11781266,2441.5,2441.2,1.891]
[1642960823611,5.17833357,2441.6,2441.1,8.9794674]
[1642960823911,1.2854648,2441.8,2441.2,0.591]
[1642960823912,5.17833357,2441.7,2441.2,0.591]
[1642960824115,1.51744221,2441.4,2440.6,3.8068]
[1642960824315,2.28586406,2441.3,2440.3,0.2425]
[1642960824515,7.46419763,2441.3,2440.6,0.591]
[1642960824713,5.34213357,2441.3,2440.6,0.591]
[1642960825111,5.34213357,2441.3,2440.6,0.509]
[1642960825321,1.25265873,2441.1,2440.6,1.63340622]
[1642960825519,5.34213357,2441.3,2440.6,1.55140622]
[1642960825718,5.17833357,2441.3,2440.6,1.55140622]